bitfinex/quotes_BTCUSD_20250618
["timestamp","ask_amount","ask_price","bid_price","bid_amount"]
[1750244711238,0.89323854,104420.0,104410.0,0.11668]
[1750244711438,0.89323851,104420.0,104410.0,0.11668]
[1750244711649,0.697695,104420.0,104410.0,0.11668]
[1750244711892,0.71542721,104420.0,104410.0,0.11668]
[1750244712298,0.72429468,104420.0,104410.0,0.11668]
[1750244712735,0.72429468,104420.0,104410.0,0.0718]
[1750244712940,0.72429468,104420.0,104410.0,0.11668]
[1750244713561,0.71542721,104420.0,104410.0,0.11668]
[1750244713761,0.72429483,104420.0,104410.0,0.11668]
[1750244713966,0.72430273,104420.0,104410.0,0.11668]
[1750244714174,0.72430265,104420.0,104410.0,0.11668]
[1750244714601,0.88806265,104420.0,104410.0,0.12840539]
[1750244715025,0.88806265,104420.0,104410.0,0.11668]
[1750244716041,0.97543573,104420.0,104410.0,0.0718]
[1750244716252,1.02641592,104420.0,104410.0,0.008]
[1750244716456,1.01976441,104420.0,104410.0,0.008]
[1750244716664,0.97543631,104420.0,104410.0,0.0713]
[1750244716871,0.97543552,104420.0,104410.0,0.0713]
[1750244717596,0.97543517,104420.0,104410.0,0.0713]
[1750244718622,0.98430354,104420.0,104410.0,0.0713]
[1750244719057,0.97543517,104420.0,104410.0,0.0713]
[1750244719458,0.97543535,104420.0,104410.0,0.0713]
[1750244719667,0.87919359,104420.0,104410.0,0.0713]
[1750244719867,0.6910451,104420.0,104410.0,0.08297539]
[1750244720140,0.8548051,104420.0,104410.0,0.08297539]
[1750244720290,0.8548051,104420.0,104410.0,0.0713]
[1750244720695,0.88805662,104420.0,104410.0,0.0713]
[1750244722690,0.88805804,104420.0,104410.0,0.0713]
[1750244722892,0.87919097,104420.0,104410.0,0.0713]
[1750244724976,0.87919097,104420.0,104410.0,0.08797539]
[1750244725184,0.87919097,104420.0,104410.0,0.0713]
[1750244725433,0.50893518,104420.0,104410.0,0.21754176]
[1750244725645,0.4912,104420.0,104410.0,0.21754176]
[1750244725853,0.4912,104420.0,104410.0,0.23208261]
[1750244730835,0.001,104420.0,104410.0,0.23208261]
[1750244731052,0.001,104420.0,104410.0,0.25983626]
[1750244737096,0.001,104420.0,104410.0,0.42347626]
[1750244742753,0.001,104420.0,104410.0,0.25983626]
[1750244742969,0.001,104420.0,104410.0,0.42343626]
[1750244744022,0.001,104420.0,104410.0,0.25983626]
[1750244744234,0.001,104420.0,104410.0,0.46823626]
[1750244745506,0.001,104420.0,104410.0,0.30463626]
[1750244745716,0.001,104420.0,104410.0,0.46823626]
[1750244747449,0.0323,104450.0,104420.0,0.07964085]
[1750244747667,0.0762522,104440.0,104430.0,0.0448]
[1750244747884,0.08290417,104440.0,104430.0,0.0448]
[1750244748131,0.08290417,104440.0,104420.0,0.1099]
[1750244749008,0.08290417,104440.0,104420.0,0.142846]
[1750244749437,0.08290606,104440.0,104420.0,0.142846]
[1750244749825,0.08290606,104440.0,104430.0,0.002]
[1750244750090,0.08390606,104440.0,104430.0,0.002]
[1750244750522,0.08390715,104440.0,104410.0,0.05]
[1750244750740,0.08390715,104440.0,104420.0,0.0448]
[1750244750948,0.08290715,104440.0,104420.0,0.0448]
[1750244751161,0.08390715,104440.0,104420.0,0.0468]
[1750244751387,0.08390715,104440.0,104420.0,0.0448]
[1750244751816,0.08390715,104440.0,104430.0,0.002]
[1750244752253,0.08490715,104440.0,104430.0,0.002]
[1750244752704,0.00865495,104440.0,104430.0,0.002]
[1750244752928,0.001,104440.0,104420.0,0.0448]
[1750244753149,0.02937306,104440.0,104420.0,0.0448]
[1750244753357,0.03037306,104440.0,104420.0,0.0468]
[1750244753563,0.03037306,104440.0,104420.0,0.0448]
[1750244753781,0.002,104440.0,104420.0,0.06390418]
[1750244754021,0.03037306,104440.0,104430.0,0.002]
[1750244754241,0.0066588,104440.0,104420.0,0.06390418]
[1750244754469,0.0066588,104440.0,104410.0,0.04468]
[1750244754470,0.1756327,104440.0,104410.0,0.04468]
[1750244754691,0.31077964,104430.0,104420.0,0.002]
[1750244754912,0.4958115,104430.0,104420.0,0.002]
[1750244756274,0.4958115,104430.0,104400.0,0.27537391]
[1750244757355,0.4978115,104430.0,104400.0,0.27537391]
[1750244757827,0.02837306,104420.0,104400.0,0.3079253]
[1750244758046,0.19189306,104420.0,104400.0,0.3579253]
[1750244758255,0.19855186,104420.0,104400.0,0.3579253]
[1750244758479,0.03503186,104420.0,104400.0,0.3579253]
[1750244758697,0.19189306,104420.0,104400.0,0.3579253]
[1750244758906,0.19855186,104420.0,104400.0,0.3579253]
[1750244759581,0.18792458,104420.0,104400.0,0.3579253]
[1750244760436,0.65357099,104420.0,104400.0,0.3579253]
[1750244760650,0.67130581,104420.0,104400.0,0.3579253]
[1750244761115,0.65357099,104420.0,104400.0,0.3579253]
[1750244761335,0.67129766,104420.0,104400.0,0.3579253]
[1750244761553,0.67129732,104420.0,104400.0,0.3579253]
[1750244763296,0.67129732,104420.0,104400.0,0.3132453]
[1750244763525,0.50777732,104420.0,104400.0,0.3579253]
[1750244763743,0.67129732,104420.0,104400.0,0.3579253]
[1750244764421,0.50777732,104420.0,104410.0,0.05]
[1750244764640,0.50112683,104420.0,104410.0,0.05]
[1750244766464,0.48239219,104420.0,104410.0,0.19165847]
[1750244766467,0.48239219,104420.0,104410.0,0.20619932]
[1750244766639,0.48339219,104420.0,104410.0,0.20619932]
[1750244767077,0.48239219,104420.0,104410.0,0.20619932]
[1750244767514,0.48339219,104420.0,104410.0,0.20619932]
[1750244767943,0.48239219,104420.0,104410.0,0.20619932]
[1750244769764,0.48239219,104420.0,104410.0,0.23949932]
[1750244769985,0.48239219,104420.0,104410.0,0.26969932]
[1750244770207,0.48239219,104420.0,104410.0,0.27069932]
[1750244772261,0.0185,104440.0,104420.0,0.05]
[1750244772484,0.0185,104430.0,104420.0,0.14624176]
[1750244773447,0.05176696,104440.0,104420.0,0.14624176]
[1750244773915,0.05376696,104440.0,104420.0,0.14624176]
[1750244774379,0.05176696,104440.0,104420.0,0.14624176]
[1750244774609,0.001,104430.0,104420.0,0.18167794]
[1750244775090,0.04396696,104440.0,104420.0,0.18167794]
[1750244775331,0.03402451,104440.0,104420.0,0.18167794]
[1750244775573,0.05176696,104440.0,104420.0,0.18167794]
[1750244776553,0.05376696,104440.0,104420.0,0.18167794]
[1750244777270,0.03526696,104440.0,104420.0,0.21417794]
[1750244777510,0.002,104440.0,104430.0,0.1142]
[1750244777736,0.002,104440.0,104430.0,0.1390272]
[1750244777964,0.002,104440.0,104430.0,0.1837072]
[1750244778188,0.002,104440.0,104430.0,0.1504072]
[1750244778387,0.002,104440.0,104430.0,0.1813072]
[1750244779381,0.70746172,104460.0,104430.0,0.27754896]
[1750244779609,0.72596172,104460.0,104430.0,0.27754896]
[1750244779834,0.002,104440.0,104430.0,0.27754896]
[1750244780298,0.72595981,104460.0,104430.0,0.27754896]
[1750244780546,0.72595981,104460.0,104430.0,0.23286896]
[1750244780800,0.73091466,104460.0,104430.0,0.27854896]
[1750244781253,0.72591466,104460.0,104430.0,0.27754896]
[1750244781472,0.70741466,104460.0,104430.0,0.27854896]
[1750244781937,0.06166247,104460.0,104450.0,0.05]
[1750244782181,0.02661858,104460.0,104450.0,0.21988176]
[1750244782413,5e-05,104470.0,104460.0,0.1124]
[1750244782703,5e-05,104470.0,104460.0,0.26786261]
[1750244783158,0.00019244,104470.0,104460.0,0.26786261]
[1750244783383,0.00019244,104470.0,104460.0,0.43122261]
[1750244783615,0.00019244,104470.0,104460.0,0.50610609]
[1750244784327,0.00019244,104470.0,104460.0,0.50810609]
[1750244787333,0.00019244,104470.0,104460.0,0.50610609]
[1750244787566,0.00019244,104470.0,104460.0,0.29806609]
[1750244787799,0.00019244,104470.0,104460.0,0.50790609]
[1750244789143,0.00019244,104470.0,104460.0,0.50670507]
[1750244789616,0.00019244,104470.0,104460.0,0.50470507]
[1750244790092,0.00019244,104470.0,104460.0,0.50670507]
[1750244791260,0.00019244,104470.0,104460.0,0.22398159]
[1750244791484,0.00019244,104470.0,104460.0,0.43178159]
[1750244797450,0.00019244,104470.0,104460.0,0.42978159]
[1750244797885,0.00019244,104470.0,104460.0,0.43278159]
[1750244798969,0.00019244,104470.0,104460.0,0.42978159]
[1750244799196,0.00019244,104470.0,104460.0,0.50189575]
[1750244799378,0.00019244,104470.0,104460.0,0.50589575]
[1750244799825,0.00019244,104470.0,104460.0,0.50189575]
[1750244800714,0.00019244,104470.0,104460.0,0.55189575]
[1750244800901,0.00019244,104470.0,104460.0,0.55489575]
[1750244802057,0.00019244,104470.0,104460.0,0.82440453]
[1750244802495,0.00019244,104470.0,104460.0,0.55189575]
[1750244802712,0.00019244,104470.0,104460.0,0.55689575]
[1750244803161,5e-05,104490.0,104480.0,0.1131]
[1750244803380,5e-05,104490.0,104480.0,0.3911639]
[1750244803604,5e-05,104490.0,104480.0,0.38877176]
[1750244804930,5e-05,104490.0,104480.0,0.40331261]
[1750244805150,5e-05,104490.0,104480.0,0.45331261]
[1750244805373,5e-05,104490.0,104480.0,0.45431261]
[1750244805808,5e-05,104490.0,104480.0,0.45331261]
[1750244806251,5e-05,104490.0,104480.0,0.45731261]
[1750244806699,5e-05,104490.0,104480.0,0.45331261]
[1750244806911,5e-05,104490.0,104480.0,0.45731261]
[1750244808051,5e-05,104490.0,104480.0,0.48596672]
[1750244808279,5e-05,104490.0,104480.0,0.48196672]
[1750244808711,5e-05,104490.0,104480.0,0.48596672]
[1750244809175,5e-05,104490.0,104480.0,0.48196672]
[1750244809622,5e-05,104490.0,104480.0,0.53144672]
[1750244810074,5e-05,104490.0,104480.0,0.52644672]
[1750244810302,5e-05,104490.0,104480.0,0.32384672]
[1750244810544,5e-05,104490.0,104480.0,0.53140672]
[1750244811406,5e-05,104490.0,104480.0,0.52636672]
[1750244811839,0.00891925,104490.0,104480.0,0.53036672]
[1750244812276,0.00891925,104490.0,104480.0,0.55876768]
[1750244812724,0.00893787,104490.0,104480.0,0.55876768]
[1750244813418,0.00893591,104490.0,104480.0,0.85289027]
[1750244813640,5e-05,104500.0,104490.0,0.0625]
[1750244813855,5e-05,104500.0,104490.0,0.24649861]
[1750244814081,0.0089363,104500.0,104490.0,0.2441068]
[1750244814305,0.02667478,104500.0,104490.0,0.21551394]
[1750244814735,0.0089363,104500.0,104490.0,0.21551394]
[1750244814958,0.0089363,104500.0,104490.0,0.26551394]
[1750244815179,0.0089363,104500.0,104490.0,0.47351394]
[1750244815615,0.0089363,104500.0,104490.0,0.47551394]
[1750244816077,5e-05,104500.0,104490.0,0.47551394]
[1750244817084,5e-05,104500.0,104490.0,0.26751394]
[1750244817564,5e-05,104500.0,104490.0,0.47567394]
[1750244817780,0.00105,104500.0,104490.0,0.48467394]
[1750244818221,0.00105,104500.0,104490.0,0.32115394]
[1750244818437,0.00105,104500.0,104490.0,0.48459394]
[1750244818683,0.00105,104500.0,104490.0,0.32115394]
[1750244818918,0.00105,104500.0,104490.0,0.21401394]
[1750244819136,0.00105,104500.0,104490.0,0.36528176]
[1750244819370,0.00105,104500.0,104490.0,0.36524176]
[1750244820504,0.02095,104500.0,104490.0,0.36512176]
[1750244820746,0.02095,104500.0,104490.0,0.20188176]
[1750244820970,0.03871621,104500.0,104490.0,0.20188176]
[1750244821210,0.05426484,104500.0,104490.0,0.36512176]
[1750244821434,0.05425777,104500.0,104490.0,0.20188176]
[1750244824145,0.05425777,104500.0,104490.0,0.20188176]
[1750244824610,5.05,104520.0,104490.0,0.20188176]
[1750244824841,0.02890541,104510.0,104490.0,0.26136994]
[1750244825107,0.00014241,104510.0,104490.0,0.26136994]
[1750244825622,0.00014241,104510.0,104500.0,0.05]
[1750244825865,0.00014241,104510.0,104500.0,0.08356221]
[1750244826792,0.00014241,104510.0,104500.0,0.37530397]
[1750244827048,0.00014241,104510.0,104500.0,0.40610397]
[1750244827269,0.00014241,104510.0,104500.0,0.42064482]
[1750244827710,0.00014241,104510.0,104500.0,0.42364482]
[1750244835889,0.00014241,104510.0,104500.0,0.74592179]
[1750244836137,0.00014241,104510.0,104500.0,0.5404988]
[1750244836370,0.00014241,104510.0,104500.0,0.4904988]
[1750244836603,0.00014241,104510.0,104500.0,0.28929054]
[1750244836826,0.00014241,104510.0,104500.0,0.49693054]
[1750244837053,0.00014241,104510.0,104500.0,0.5851388]
[1750244837982,0.00014241,104510.0,104500.0,0.5911388]
[1750244838925,0.00014241,104510.0,104500.0,0.5411388]
[1750244839144,0.00014241,104510.0,104500.0,0.5911388]
[1750244840225,0.00014241,104510.0,104500.0,0.33993054]
[1750244840452,0.00014241,104510.0,104500.0,0.55672454]
[1750244840890,0.00014241,104510.0,104500.0,0.55372454]
[1750244841111,0.00014241,104510.0,104500.0,0.54772454]
[1750244841318,0.00014241,104510.0,104500.0,0.54972454]
[1750244841542,0.00114241,104510.0,104500.0,0.50772454]
[1750244841761,0.00114241,104510.0,104500.0,0.55572454]
[1750244842193,0.00114241,104510.0,104500.0,0.55872454]
[1750244843128,0.00114241,104510.0,104500.0,0.50872454]
[1750244843389,0.00114241,104510.0,104500.0,0.55872454]
[1750244844074,0.00114241,104510.0,104500.0,0.5469328]
[1750244844296,0.00114241,104510.0,104500.0,0.5969328]
[1750244846291,0.00114241,104510.0,104500.0,0.608056]
[1750244847168,0.00114241,104510.0,104500.0,0.608096]
[1750244847659,0.00114241,104510.0,104500.0,0.40668774]
[1750244847866,0.00114241,104510.0,104500.0,0.51581374]
[1750244848104,0.00114241,104510.0,104500.0,0.55469054]
[1750244848322,0.00114241,104510.0,104500.0,0.50469054]
[1750244848545,0.00114241,104510.0,104500.0,0.55469054]
[1750244848757,0.00114241,104510.0,104500.0,0.34733054]
[1750244848997,0.00114241,104510.0,104500.0,0.31308482]
[1750244849225,0.00114241,104510.0,104500.0,0.25414397]
[1750244849444,0.00114241,104510.0,104500.0,0.51146397]
[1750244849923,0.00114241,104510.0,104500.0,0.52600482]
[1750244850365,0.00114241,104510.0,104500.0,0.26868482]
[1750244850593,0.00114241,104510.0,104500.0,0.44244261]
[1750244851049,0.00114241,104510.0,104500.0,0.27952261]
[1750244851282,0.00114241,104510.0,104500.0,0.23512261]
[1750244851535,0.00114241,104510.0,104500.0,0.44244261]
[1750244852677,0.00114241,104510.0,104500.0,0.37914261]
[1750244853149,0.00114241,104510.0,104500.0,0.20168176]
[1750244853395,0.00014241,104510.0,104500.0,0.36814261]
[1750244854759,0.02496026,104530.0,104500.0,0.31814261]
[1750244854979,0.02496026,104530.0,104510.0,0.05]
[1750244855481,0.05026937,104530.0,104510.0,0.0944]
[1750244855725,0.08369588,104530.0,104510.0,0.0944]
[1750244856201,0.0770081,104530.0,104510.0,0.0944]
[1750244856435,0.08369674,104530.0,104510.0,0.0944]
[1750244856661,0.08869674,104530.0,104510.0,0.0944]
[1750244857123,0.08669674,104530.0,104510.0,0.0944]
[1750244857347,0.08869674,104530.0,104510.0,0.0944]
[1750244857851,0.1849385,104530.0,104500.0,0.05004]
[1750244858067,0.02530911,104520.0,104500.0,0.09444]
[1750244858987,0.04314961,104520.0,104500.0,0.09444]
[1750244859210,0.0587429,104520.0,104500.0,0.09444]
[1750244859440,0.0637429,104520.0,104500.0,0.09444]
[1750244860139,0.12500476,104530.0,104500.0,0.09444]
[1750244860365,5.05,104520.0,104500.0,0.09444]
[1750244860585,0.005,104520.0,104500.0,0.103884]
[1750244861092,5.058,104520.0,104500.0,0.103884]
[1750244861310,0.008,104520.0,104500.0,0.103884]
[1750244861778,0.008,104520.0,104500.0,0.09444]
[1750244863390,0.013,104520.0,104500.0,0.09444]
[1750244864519,0.013,104520.0,104500.0,0.04444]
[1750244864750,0.10924176,104520.0,104500.0,0.04444]
[1750244865653,0.013,104520.0,104500.0,0.09444]
[1750244865863,0.013,104520.0,104500.0,0.11150922]
[1750244868621,0.013,104520.0,104500.0,0.09444]
[1750244868846,0.10924176,104520.0,104500.0,0.04444]
[1750244869085,4.82476,104510.0,104500.0,0.04444]
[1750244869347,4.82476,104510.0,104500.0,4e-05]
[1750244869584,4.92200176,104510.0,104500.0,4e-05]
[1750244869811,5.11768138,104510.0,104500.0,4e-05]
[1750244870304,5.12068138,104510.0,104500.0,4e-05]
[1750244870764,5.28722223,104510.0,104500.0,4e-05]
[1750244870987,5.46381682,104510.0,104500.0,4e-05]
[1750244871218,5.52689137,104510.0,104500.0,4e-05]
[1750244871662,5.52089137,104510.0,104500.0,4e-05]
[1750244872104,5.52755494,104510.0,104500.0,4e-05]
[1750244872318,6.22755494,104510.0,104500.0,4e-05]
[1750244872537,6.68155494,104510.0,104500.0,4e-05]
[1750244872767,6.51863494,104510.0,104500.0,4e-05]
[1750244872989,6.68217176,104510.0,104500.0,4e-05]
[1750244873241,6.76427116,104510.0,104500.0,0.00104]
[1750244873467,6.76727116,104510.0,104500.0,0.00204]
[1750244874814,6.64116187,104510.0,104500.0,0.00204]
[1750244875037,6.68502682,104510.0,104500.0,0.00204]
[1750244875265,5.69445138,104510.0,104500.0,0.00204]
[1750244875482,5.85741138,104510.0,104500.0,0.00204]
[1750244875716,5.92195223,104510.0,104500.0,0.00204]
[1750244875933,5.91766637,104510.0,104500.0,0.00204]
[1750244876155,5.96766637,104510.0,104500.0,0.00204]
[1750244877246,5.91766637,104510.0,104500.0,0.00204]
[1750244877469,5.967667,104510.0,104500.0,0.00204]
[1750244878620,5.054707,104510.0,104500.0,0.00204]
[1750244878844,5.19446698,104510.0,104500.0,0.00204]
[1750244879294,5.24446698,104510.0,104500.0,0.00204]
[1750244879513,5.267667,104510.0,104500.0,0.00204]
[1750244879745,5.21087106,104510.0,104500.0,0.00204]
[1750244879972,5.23964506,104510.0,104500.0,0.00204]
[1750244880547,5.28978669,104510.0,104500.0,0.00204]
[1750244880757,5.29644611,104510.0,104500.0,0.00204]
[1750244881670,5.29645258,104510.0,104500.0,0.00204]
[1750244883208,5.29644768,104510.0,104500.0,0.00204]
[1750244883856,5.25145291,104510.0,104500.0,0.00204]
[1750244884077,5.25149291,104510.0,104500.0,0.00204]
[1750244884297,5.02823792,104510.0,104500.0,0.00204]
[1750244884520,5.19123792,104510.0,104500.0,0.00204]
[1750244884983,5.13444198,104510.0,104500.0,0.00204]
[1750244885479,4.97144198,104510.0,104500.0,0.00204]
[1750244885722,4.98032932,104510.0,104500.0,0.00204]
[1750244885952,0.22229287,104510.0,104500.0,0.06554]
[1750244886418,0.22233287,104510.0,104500.0,0.06554]
[1750244886639,0.21633256,104510.0,104500.0,0.06454]
[1750244886859,0.21333256,104510.0,104500.0,0.06354]
[1750244887081,0.22233256,104510.0,104500.0,0.06454]
[1750244887552,0.05233256,104510.0,104500.0,0.06354]
[1750244887782,0.21529256,104510.0,104500.0,0.06354]
[1750244888005,0.21929256,104510.0,104500.0,0.06354]
[1750244888224,0.05633256,104510.0,104500.0,0.06354]
[1750244888441,0.21929256,104510.0,104500.0,0.06354]
[1750244888918,0.21929792,104510.0,104500.0,0.06354]
[1750244889131,0.05633792,104510.0,104500.0,0.06354]
[1750244889372,0.21929792,104510.0,104500.0,0.06354]
[1750244890925,0.21930779,104510.0,104500.0,0.06354]
[1750244891597,0.02257082,104510.0,104500.0,0.06354]
[1750244891816,0.16996,104510.0,104500.0,0.06354]
[1750244892032,0.18553082,104510.0,104500.0,0.06354]
[1750244894334,0.18553358,104510.0,104500.0,0.06354]
[1750244895677,0.18553614,104510.0,104500.0,0.06354]
[1750244896136,0.18553796,104510.0,104500.0,0.06354]
[1750244899128,0.28177972,104510.0,104500.0,0.06354]
[1750244899367,0.28177972,104510.0,104500.0,4e-05]
[1750244899605,0.31054872,104510.0,104500.0,4e-05]
[1750244899835,0.31054872,104510.0,104500.0,0.03054]
[1750244900368,0.31054872,104510.0,104500.0,4e-05]
[1750244901049,5.13530872,104510.0,104500.0,4e-05]
[1750244901284,5.24437389,104510.0,104500.0,4e-05]
[1750244901974,5.26688801,104510.0,104500.0,4e-05]
[1750244902449,5.17328523,104510.0,104500.0,4e-05]
[1750244902682,5.17328546,104510.0,104500.0,0.06324]
[1750244903358,0.2234747,104510.0,104500.0,0.069564]
[1750244903580,0.18551168,104510.0,104500.0,0.06324]
[1750244904341,0.18451168,104510.0,104500.0,0.06324]
[1750244904894,0.02159168,104510.0,104500.0,0.06324]
[1750244905142,0.16892,104510.0,104500.0,0.06324]
[1750244905409,0.18051772,104510.0,104500.0,0.06324]
[1750244905653,0.17851772,104510.0,104500.0,0.06324]
[1750244905910,0.02359772,104510.0,104500.0,0.124564]
[1750244906165,0.003,104510.0,104500.0,0.124564]
[1750244906419,0.16292,104520.0,104510.0,0.0602]
[1750244906741,0.16292,104520.0,104500.0,0.061364]
[1750244906742,4.86272957,104530.0,104520.0,0.0621]
[1750244906924,5.00328293,104530.0,104520.0,0.0621]
[1750244907453,0.01560293,104530.0,104520.0,0.1121]
[1750244907717,0.05404711,104540.0,104520.0,0.1121]
[1750244908017,0.16292,104530.0,104520.0,0.1146]
[1750244908239,0.01560079,104530.0,104520.0,0.1146]
[1750244908568,0.16292,104530.0,104520.0,0.1132]
[1750244908816,0.17852079,104530.0,104520.0,0.1132]
[1750244909361,0.18352079,104530.0,104520.0,0.1132]
[1750244909616,0.18152079,104530.0,104520.0,0.1132]
[1750244910643,5.15613536,104550.0,104540.0,0.0614]
[1750244910886,5.25251942,104550.0,104540.0,0.0614]
[1750244911888,5.25851942,104550.0,104540.0,0.06754]
[1750244912144,5.25851942,104550.0,104540.0,0.0614]
[1750244912650,5.42639942,104550.0,104540.0,0.0614]
[1750244912901,0.60163942,104550.0,104540.0,0.0614]
[1750244913188,0.59563942,104550.0,104540.0,0.0614]
[1750244913406,0.59663942,104550.0,104540.0,0.0614]
[1750244914173,0.59963942,104550.0,104540.0,0.0614]
[1750244914490,0.59963942,104550.0,104540.0,0.06754]
[1750244914679,0.59363942,104550.0,104540.0,0.0614]
[1750244914941,0.59563942,104550.0,104540.0,0.0614]
[1750244915438,0.59263942,104550.0,104540.0,0.0614]
[1750244919672,0.33351766,104550.0,104540.0,0.0614]
[1750244919894,0.49635766,104550.0,104540.0,0.0614]
[1750244920123,0.46759866,104550.0,104540.0,0.0614]
[1750244922613,0.48317162,104550.0,104540.0,0.0614]
[1750244924832,0.48317193,104550.0,104540.0,0.0614]
[1750244925539,0.4831726,104550.0,104540.0,0.0614]
[1750244925756,0.5119276,104550.0,104540.0,0.0614]
[1750244926473,0.51192867,104550.0,104540.0,0.0614]
[1750244927136,0.69185414,104550.0,104540.0,0.0614]
[1750244927376,0.69185414,104550.0,104530.0,0.0628]
[1750244927604,4.82476,104540.0,104530.0,0.0628]
[1750244927840,0.01558375,104540.0,104530.0,0.0628]
[1750244928054,0.00890502,104540.0,104530.0,0.0628]
[1750244928271,0.05461916,104540.0,104530.0,0.0628]
[1750244928485,0.06129789,104540.0,104530.0,0.0628]
[1750244928947,0.01558375,104540.0,104530.0,0.128512]
[1750244929192,0.1628,104540.0,104530.0,0.130512]
[1750244929414,0.17938375,104540.0,104530.0,0.130512]
[1750244929843,0.70647565,104550.0,104540.0,0.0645]
[1750244930963,0.61023389,104550.0,104540.0,0.0645]
[1750244931178,0.61023389,104550.0,104540.0,0.0777212]
[1750244931404,0.61223389,104550.0,104540.0,0.1145]
[1750244931631,0.60722969,104550.0,104540.0,0.1145]
[1750244931876,0.77002969,104550.0,104540.0,0.1145]
[1750244932114,0.08827469,104550.0,104540.0,0.21074176]
[1750244932337,0.08827469,104550.0,104540.0,0.23382628]
[1750244934614,0.08627469,104550.0,104540.0,0.23382628]
[1750244934839,0.08827469,104550.0,104540.0,0.23382628]
[1750244935339,0.08627469,104550.0,104540.0,0.23382628]
[1750244935560,0.24903469,104550.0,104540.0,0.23382628]
[1750244935782,0.24903469,104550.0,104540.0,0.23582628]
[1750244936228,0.26688816,104550.0,104540.0,0.23582628]
[1750244936442,0.10412816,104550.0,104540.0,0.23582628]
[1750244937313,0.10412816,104550.0,104540.0,0.21274176]
[1750244940472,0.10412816,104550.0,104540.0,0.1165]
[1750244940693,0.10412816,104550.0,104540.0,0.16078]
[1750244940929,0.10412816,104550.0,104540.0,0.11078]
[1750244941147,0.10412816,104550.0,104540.0,0.16078]
[1750244941607,0.10412816,104550.0,104540.0,0.1165]
[1750244941857,0.08627469,104550.0,104540.0,0.11078]
[1750244942074,0.11974822,104550.0,104540.0,0.16078]
[1750244943007,0.11974822,104550.0,104540.0,0.11078]
[1750244943667,0.11974822,104550.0,104540.0,0.16078]
[1750244943889,0.11974822,104550.0,104540.0,0.176858]
[1750244944108,0.28246822,104550.0,104540.0,0.176858]
[1750244944337,0.11975582,104550.0,104540.0,0.176858]
[1750244944789,0.11975582,104550.0,104540.0,0.27309976]
[1750244945671,0.11975582,104550.0,104540.0,0.22881976]
[1750244945901,0.11306091,104550.0,104540.0,0.27309976]
[1750244946129,0.11975513,104550.0,104540.0,0.27309976]
[1750244946785,0.11305934,104550.0,104540.0,0.27309976]
[1750244947011,0.11304979,104550.0,104540.0,0.27309976]
[1750244947554,0.11304979,104550.0,104540.0,0.28764061]
[1750244948015,0.11304779,104550.0,104540.0,0.28764061]
[1750244949138,0.11304729,104550.0,104540.0,0.28764061]
[1750244949807,0.08627469,104550.0,104540.0,0.28764061]
[1750244950041,0.11304708,104550.0,104540.0,0.28764061]
[1750244950752,0.09519882,104550.0,104540.0,0.28764061]
[1750244954368,0.09519882,104550.0,104540.0,0.28760061]
[1750244954800,0.09519882,104550.0,104540.0,0.27152261]
[1750244957339,0.1130515,104550.0,104540.0,0.27152261]
[1750244958253,0.11305016,104550.0,104540.0,0.27152261]
[1750244960983,0.11305016,104550.0,104540.0,0.22152261]
[1750244961208,0.11305016,104550.0,104540.0,0.27152261]
[1750244962569,0.11305016,104550.0,104540.0,0.21274176]
[1750244962780,0.11975052,104550.0,104540.0,0.1165]
[1750244963017,0.11975052,104550.0,104540.0,0.16074]
[1750244963700,0.11975052,104550.0,104540.0,0.09624]
[1750244963924,0.11977103,104550.0,104540.0,0.173624]
[1750244964154,0.11977103,104550.0,104540.0,0.112024]
[1750244964387,0.14852403,104550.0,104540.0,0.09624]
[1750244965105,0.14852403,104550.0,104540.0,0.12664]
[1750244965336,0.14852403,104550.0,104540.0,0.15964]
[1750244965559,0.11977103,104550.0,104540.0,0.15964]
[1750244966090,0.11977103,104550.0,104540.0,0.04624]
[1750244966335,0.14852403,104550.0,104540.0,0.04624]
[1750244966559,0.06239164,104550.0,104540.0,0.04624]
[1750244966774,0.06239329,104550.0,104540.0,0.04624]
[1750244967255,0.06239329,104550.0,104540.0,0.002]
[1750244967743,0.0855827,104550.0,104540.0,0.002]
[1750244967975,0.2481427,104550.0,104540.0,0.002]
[1750244968210,0.22495329,104550.0,104530.0,0.15534]
[1750244968431,0.40527021,104560.0,104530.0,0.15534]
[1750244968657,0.40527021,104560.0,104530.0,0.1554823]
[1750244968658,4.82476,104550.0,104530.0,0.1554823]
[1750244968884,0.003,104550.0,104530.0,0.1554823]
[1750244969111,0.005,104550.0,104530.0,0.1554823]
[1750244969356,0.002,104550.0,104530.0,0.1554823]
[1750244969845,0.16456,104550.0,104530.0,0.17103053]
[1750244970069,0.16556,104550.0,104530.0,0.17103053]
[1750244970531,0.16256,104550.0,104530.0,0.17103053]
[1750244970756,0.16356,104550.0,104530.0,0.17103053]
[1750244970975,0.16556,104550.0,104530.0,0.17103053]
[1750244971431,0.16556,104550.0,104530.0,0.1554823]
[1750244972508,0.16556,104550.0,104540.0,0.0304]
[1750244972723,0.16556,104550.0,104540.0,0.062]
[1750244973895,0.16456,104550.0,104540.0,0.062]
[1750244974132,0.16356,104550.0,104540.0,0.062]
[1750244974350,0.16556,104550.0,104540.0,0.062]
[1750244974573,0.003,104550.0,104540.0,0.062]
[1750244974814,0.16552,104550.0,104540.0,0.062]
[1750244980284,0.16552,104550.0,104540.0,0.07763023]
[1750244980508,0.17221148,104550.0,104540.0,0.07763023]
[1750244980728,0.18113415,104550.0,104540.0,0.07763023]
[1750244981455,0.18113415,104550.0,104540.0,0.062]
[1750244983437,0.18109715,104550.0,104540.0,0.112]
[1750244983657,0.01861715,104550.0,104540.0,0.112]
[1750244983908,0.16548,104550.0,104540.0,0.112]
[1750244984125,0.01861715,104550.0,104540.0,0.112]
[1750244984358,0.003,104550.0,104540.0,0.112]
[1750244984586,0.001,104550.0,104540.0,0.112]
[1750244984809,0.003,104550.0,104540.0,0.112]
[1750244985036,0.002,104550.0,104540.0,0.112]
[1750244985250,0.002,104550.0,104540.0,0.113]
[1750244986801,0.60913,104560.0,104550.0,0.0615]
[1750244987029,0.60913006,104560.0,104550.0,0.0615]
[1750244987256,0.59350621,104560.0,104550.0,0.0615]
[1750244988161,0.61113008,104560.0,104550.0,0.0615]
[1750244988389,0.61213008,104560.0,104550.0,0.0615]
[1750244989113,0.65376677,104560.0,104550.0,0.0615]
[1750244989363,0.03650643,104560.0,104550.0,0.127066]